Cogmind - Beta 12 @@@ ROGUE MODE // 2024.02.13 @ 16:28:49 Player: SURFACESEEKER Result: Destroyed by B-75 Beast with Magnetic Acceleration Cannon Performance ------------- Evolutions (4) 2000 Regions Visited (8) 1600 Robots Destroyed (108) 540 Value Destroyed (2760) 2760 Prototype IDs (5) 100 Alien Tech Used (0) 0 Bonus (61) 61 TOTAL SCORE: 7061 Bonus ------- High Alert Combat Kills 73 Friendly Fire -12 Cogmind --------- Core Integrity 0/850 Matter 285/300 Energy 79/100 System Corruption 0% Temperature Cool (18) Movement Core (450) Ox8 Location -6/Extension Parts ------- > --- POWER (2) -------- (None) > --- PROPULSION (5) --- (None) > --- UTILITY (5) ------ Large Storage Unit Terrain Scan Processor Improved Melee Analysis Suite Advanced Melee Analysis Suite > --- WEAPON (3) ------- Heavy Flail Power Maul > --- INVENTORY (15) --- Cryofiber Web Large Storage Unit Large Matter Pod (150) Advanced ECM Suite EM Disruption Field Heavy Ion Cannon Heavy Assault Rifle Heavy Assault Rifle Flak Gun Coil Gun Grenade Launcher Peak State ------------ > --- POWER ------------ Light Deuterium Engine Light Nuclear Core > --- PROPULSION ------- Improved Aluminum Leg Carbon-fiber Leg Carbon-fiber Leg Titanium Leg > --- UTILITY ---------- Large Storage Unit Improved Terrain Scanner Terrain Scan Processor Improved Melee Analysis Suite Advanced ECM Suite > --- WEAPON ----------- Heavy Flail Great Maul Scythe > --- INVENTORY -------- Light Nuclear Core Light Nuclear Core Cryofiber Web Large Storage Unit Large Matter Pod Transmission Jammer Hardened Medium Armor Plating Improved Medium Laser Heavy Ion Cannon Heavy Assault Rifle Flak Gun Grenade Launcher Heavy Flail Heavy Flail Power Maul [Rating: 44] Favorites ----------- Power Light Nuclear Core Engine Heavy Ion Engine Power Core Light Nuclear Core Propulsion Carbon-fiber Leg Treads Medium Treads Leg Carbon-fiber Leg Wheel Wheel Utility Terrain Scan Processor Device Improved Terrain Scanner Storage Large Storage Unit Processor Terrain Scan Processor Hackware Hacking Suite Protection Light Armor Plating Weapon Scythe Energy Gun Improved Medium Laser Energy Cannon Heavy Ion Cannon Ballistic Gun Light Assault Rifle Launcher Grenade Launcher Special Weapon Mining Laser Impact Weapon Great Maul Slashing Weapon Scythe Build | -11 -10 -10 -9 -8 -8 -7 -6 -6 ------- Run | Jun Mat Min Mat Mat Sto Fac Fac Ext Slots Evolved 8 | . . . 2 2 . 2 2 . Power 1 | . . . . . . 1 . . Propulsion 3 | . . . . 2 . . 1 . Utility 3 | . . . 2 . . 1 . . Weapon 1 | . . . . . . . 1 . Parts Attached 106 | 8 17 . 14 33 8 7 5 14 Power 15 | 1 3 . 2 2 . 2 2 3 Engine 11 | 1 3 . 2 2 . 1 . 2 Core 4 | . . . . . . 1 2 1 Reactor . | . . . . . . . . . Propulsion 38 | 2 6 . 3 17 3 2 . 5 Treads 1 | . . . . . . . . 1 Leg 21 | . . . . 16 3 2 . . Wheel 16 | 2 6 . 3 1 . . . 4 Hover . | . . . . . . . . . Flight . | . . . . . . . . . Utility 21 | 2 2 . 4 5 2 2 1 3 Device 7 | 1 . . 1 2 1 . 1 1 Storage 3 | 1 1 . . 1 . . . . Processor 5 | . 1 . 1 1 . 1 . 1 Hackware 1 | . . . 1 . . . . . Protection 5 | . . . 1 1 1 1 . 1 Artifact . | . . . . . . . . . Weapon 32 | 3 6 . 5 9 3 1 2 3 Energy Gun 2 | 1 . . . 1 . . . . Energy Cannon 1 | . . . . . . 1 . . Ballistic Gun 9 | 2 4 . 2 1 . . . . Ballistic Cannon . | . . . . . . . . . Launcher 6 | . 2 . 2 2 . . . . Special Weapon 1 | . . . 1 . . . . . Impact Weapon 6 | . . . . . 1 . 2 3 Slashing Weapon 7 | . . . . 5 2 . . . Piercing Weapon . | . . . . . . . . . Special Melee Weapon . | . . . . . . . . . Unidentified Prototypes 3 | . . . 1 2 . . . . Parts Lost 34 | . 3 . 2 13 . . 1 15 Power 3 | . 1 . . . . . . 2 Propulsion 16 | . 1 . 1 7 . . 1 6 Utility 8 | . 1 . . 4 . . . 3 Weapon 7 | . . . 1 2 . . . 4 Highest Loss Streak 13 | . 2 . 1 8 . . 1 13 To Critical Strikes . | . . . . . . . . . Average Slot Usage (%) 91 | . 92 100 88 85 99 98 88 86 Engine 8 | . 14 14 10 9 9 10 2 1 Core 3 | . . . . . . 3 9 10 Leg 18 | . . . . 24 35 29 23 14 Wheel 9 | . 28 28 21 5 . . . 5 Device 7 | . 4 . 7 8 2 7 10 10 Storage 8 | . 14 14 11 9 9 7 6 6 Processor 12 | . 2 14 11 9 18 22 15 13 Protection 2 | . . . 2 2 6 . . 1 Ballistic Gun 6 | . 26 28 18 2 . . . . Impact Weapon 4 | . . . . . 2 3 9 13 Slashing Weapon 6 | . . . . 10 14 7 6 5 Naked Turns . | . . . . . . . . . Heaviest Build 54 | 11 15 15 29 39 36 41 43 54 Greatest Support 60 | 32 32 20 26 60 60 60 60 47 Greatest Overweight (x) 4 | . . . 2 1 1 . . 4 Average Overweight (x) . | . . . . . . . . . Largest Inventory Capacity 15 | 8 10 10 10 15 15 15 15 15 Average Capacity 13 | 7 8 10 10 14 15 15 15 15 Most Carried 15 | 8 9 10 10 15 15 15 15 15 Average Carried 12 | 6 8 9 9 13 14 14 14 14 Final Capacity 15 | 8 10 10 10 15 15 15 15 15 Final Carried 15 | 8 9 10 10 15 12 15 15 11 Class Distribution -------------------- 60% | Mutant 39% | Scavenger-Mutant Dominant Class ---------------- Mutant | -10/Materials Scavenger-Mutant | -10/Mines Scavenger-Mutant | -9/Materials Scavenger-Mutant | -8/Materials Mutant | -8/Storage Mutant | -7/Factory Mutant | -6/Factory Mutant | -6/Extension Resources | -11 -10 -10 -9 -8 -8 -7 -6 -6 ----------- Run | Jun Mat Min Mat Mat Sto Fac Fac Ext Matter Collected 1801 | 273 235 68 310 490 210 70 45 100 Remotely . | . . . . . . . . . Salvage Created 3773 | 261 490 . 365 1262 742 185 127 341 Parts 251 | 25 44 . 34 77 43 7 4 17 Haulers Intercepted 5 | . 1 . . 3 . . . 1 Recyclers Shooed 2 | 1 1 . . . . . . . Parts Field Recycled . | . . . . . . . . . Retrieved Matter . | . . . . . . . . . Parts Self-Destructed . | . . . . . . . . . Prevented . | . . . . . . . . . Kills | -11 -10 -10 -9 -8 -8 -7 -6 -6 ------- Run | Jun Mat Min Mat Mat Sto Fac Fac Ext Combat Hostiles Destroyed 58 | . 10 . 11 16 13 4 2 2 Melee 33 | . . . . 15 12 4 1 1 Guns 16 | . 6 . 9 1 . . . . AOE 6 | . 4 . 2 . . . . . Classes Destroyed 12 | 3 6 . . 2 . . . 1 Worker 12 | 1 1 . 2 3 2 1 . 2 Builder 11 | . 6 . 2 1 1 . . 1 Tunneler 9 | 8 . . . 1 . . . . Hauler 5 | . 1 . . 3 . . . 1 Recycler 6 | 1 2 . 1 2 . . . . Mechanic 1 | . 1 . . . . . . . Watcher 6 | . 1 . 1 3 . . . 1 Swarmer 13 | . 3 . 7 . . 3 . . Grunt 28 | . 7 . 4 9 8 . . . Sentry 12 | . . . . 5 4 1 2 . Hunter 4 | . . . . 2 1 . . 1 Behemoth 1 | . . . . . . . . 1 Best Kill Streak 7 | 2 7 . 5 4 3 3 1 3 Combat Bots Only 4 | . 3 . 4 3 3 3 1 1 Max Kills in Single Turn 4 | 1 4 . 1 2 1 1 1 1 Gunslinging . | . . . . . . . . . Exploded 2 | . 2 . 1 . . . . . Melee 1 | . . . . 1 1 1 1 1 Uniques/NPCs Destroyed . | . . . . . . . . . Combat | -11 -10 -10 -9 -8 -8 -7 -6 -6 -------- Run | Jun Mat Min Mat Mat Sto Fac Fac Ext Damage Taken 6110 | . 415 24 317 1635 651 289 471 2308 Core 1487 | . 89 2 66 286 101 71 43 829 Absorbed by Shields . | . . . . . . . . . Core Remaining (%) 72 | 100 . 63 83 . 29 89 . . Volleys Fired 187 | 34 66 4 50 13 . 20 . . Largest 2 | 2 2 2 2 2 . 1 . . Hottest 100 | 70 50 40 100 56 . 65 . . Shots Fired 319 | 68 117 8 85 21 . 20 . . Gun 274 | 68 111 8 70 17 . . . . Cannon 20 | . . . . . . 20 . . Launcher 23 | . 6 . 13 4 . . . . Special 2 | . . . 2 . . . . . Kinetic 254 | 49 111 8 70 16 . . . . Thermal 42 | 19 . . 2 1 . 20 . . Explosive 23 | . 6 . 13 4 . . . . Electromagnetic . | . . . . . . . . . Robot Hit Streak 8 | 8 6 2 7 6 . 5 . . Robot Miss Streak 5 | 4 4 2 5 2 . . . . Penetration Max . | . . . . . . . . . Secondary Targets 2 | . 1 . 1 . . . . . Max Gunslinging Chain 1 | . 1 . 1 . . . . . Shots Hit Robots 315 | 39 64 4 44 71 39 11 11 32 Core Hits 152 | 17 39 1 35 29 15 6 3 7 Critical Kills . | . . . . . . . . . Critical Parts Destroyed 4 | . . . . . . . 1 3 Critical Strikes 19 | . . . . 6 4 2 4 3 Smash 5 | . . . . . . . 2 3 Sever 14 | . . . . 6 4 2 2 . Melee Attacks 203 | . . . . 72 64 13 14 40 Impact 30 | . . . . . 5 1 8 16 Slashing 173 | . . . . 72 59 12 6 24 Piercing . | . . . . . . . . . Sneak Attacks 28 | . . . . 11 8 . . 9 Combat Hostiles 2 | . . . . . 2 . . . Follow-up Attacks 20 | . . . . 2 7 . 4 7 Damage Inflicted 8996 | 389 1385 39 764 2622 1548 343 396 1510 Guns 1422 | 389 506 34 359 134 . . . . Cannons 55 | . . . . . . 55 . . Explosions 1646 | . 879 . 405 362 . . . . Melee 5837 | . . . . 2126 1548 288 365 1510 Ramming 36 | . . 5 . . . . 31 . Kinetic 1258 | 225 506 34 359 134 . . . . Thermal 649 | 164 430 . . . . 55 . . Explosive 1216 | . 449 . 405 362 . . . . Electromagnetic . | . . . . . . . . . Impact 916 | . . . . . 136 . 205 575 Slashing 4921 | . . . . 2126 1412 288 160 935 Piercing . | . . . . . . . . . Highest Corruption . | . . . . . . . . . Average Corruption . | . . . . . . . . . Corruption Purged . | . . . . . . . . . Corruption Blocked . | . . . . . . . . . Overload Shots . | . . . . . . . . . Overflow Damage 981 | . 202 . 2 243 97 6 31 400 Projectiles 6 | . . . . . . 6 . . Explosions 216 | . 202 . 2 12 . . . . Melee 759 | . . . . 231 97 . 31 400 Knockbacks 2 | . . . . . 1 . . 1 Impact 2 | . . . . . 1 . . 1 Kinetic . | . . . . . . . . . Secondary . | . . . . . . . . . Self-Inflicted Damage 149 | . 72 2 26 . . 49 . . Shots 4 | . 1 . 2 . . 1 . . Rammed 1 | . . 1 . . . . . . Targets Rammed 8 | . . 1 . . . . 7 . Kicked 7 | . . . . . . . 7 . Crushed . | . . . . . . . . . Highest Temperature 161 | 100 19 6 16 9 6 161 . 13 Average Temperature 43 | 39 7 6 8 7 6 76 . 7 Received Heat Transfer 1689 | . 105 12 30 711 315 30 108 378 Siege Activations . | . . . . . . . . . Robots Corrupted . | . . . . . . . . . Combat Hostiles . | . . . . . . . . . Parts Fried 5 | . . . . . . . 1 4 Impact Corruptions 8 | . . . . . 1 . 2 5 Robots Melted . | . . . . . . . . . Combat Hostiles . | . . . . . . . . . Parts Melted 2 | . 1 . . 1 . . . . Heat Transferred 905 | 481 350 . . . . 74 . . Parts Sabotaged . | . . . . . . . . . Parts Stolen . | . . . . . . . . . Parts Stripped . | . . . . . . . . . Power Chain Reactions . | . . . . . . . . . Missiles Intercepted . | . . . . . . . . . Alert | -11 -10 -10 -9 -8 -8 -7 -6 -6 ------- Run | Jun Mat Min Mat Mat Sto Fac Fac Ext Peak Influence 518 | 50 456 99 457 474 461 518 244 119 Initial 209 | . 32 99 38 152 152 209 155 119 Average 221 | 23 278 99 280 306 284 329 204 63 Maximum Alert Level 2 | . 2 . 2 2 2 2 1 . Low Security (%) 40 | 100 27 100 17 17 16 . 24 100 Level 1 45 | . 49 . 65 63 67 64 75 . Level 2 13 | . 22 . 16 18 15 35 . . Level 3 . | . . . . . . . . . Level 4 . | . . . . . . . . . Level 5 . | . . . . . . . . . High Security . | . . . . . . . . . Max Security . | . . . . . . . . . Squads Dispatched 12 | . 4 1 3 1 2 . 1 . Investigation 8 | . 2 1 2 1 2 . . . Extermination . | . . . . . . . . . Reinforcement 4 | . 2 . 1 . . . 1 . Assault . | . . . . . . . . . Garrison . | . . . . . . . . . Intercept . | . . . . . . . . . Searches Triggered . | . . . . . . . . . Construction Impeded . | . . . . . . . . . Haulers Reinforced . | . . . . . . . . . Active Scanning Responses . | . . . . . . . . . Cargo Convoy Interrupts . | . . . . . . . . . Stealth | -11 -10 -10 -9 -8 -8 -7 -6 -6 --------- Run | Jun Mat Min Mat Mat Sto Fac Fac Ext Distress Signals 9 | . 3 . 2 3 1 . . . Communications Jammed 5 | . . . . . . . . 5 Distress Signals 5 | . . . . . . . . 5 Times Spotted 100 | . 19 2 23 26 17 4 2 7 Peak Tracking Total 7 | . 3 2 5 7 3 3 1 5 Tactical Retreats 5 | . 1 . 3 1 . . . . Traps | -11 -10 -10 -9 -8 -8 -7 -6 -6 ------- Run | Jun Mat Min Mat Mat Sto Fac Fac Ext Traps Triggered . | . . . . . . . . . Indirectly . | . . . . . . . . . Trap Hack Attempts . | . . . . . . . . . Triggered . | . . . . . . . . . Disarmed . | . . . . . . . . . Reprogrammed . | . . . . . . . . . Reused . | . . . . . . . . . Traps Extracted . | . . . . . . . . . Installed . | . . . . . . . . . Triggered . | . . . . . . . . . Machines | -11 -10 -10 -9 -8 -8 -7 -6 -6 ---------- Run | Jun Mat Min Mat Mat Sto Fac Fac Ext Machines Disabled 17 | . 2 . 3 3 2 7 . . Max in Single Turn 4 | . 2 . 1 1 1 4 . . Machines Repaired . | . . . . . . . . . Machines Sabotaged . | . . . . . . . . . Overloaded Fab Kills . | . . . . . . . . . Hacking | -11 -10 -10 -9 -8 -8 -7 -6 -6 --------- Run | Jun Mat Min Mat Mat Sto Fac Fac Ext Machines Accessed 23 | . 3 1 6 3 8 1 1 . Terminals 20 | . 2 . 5 3 8 1 1 . Fabricators . | . . . . . . . . . Repair Stations . | . . . . . . . . . Recycling Units 2 | . 1 . 1 . . . . . Scanalyzers . | . . . . . . . . . Garrison Access . | . . . . . . . . . Total Hacks 57 | . 8 1 15 8 20 2 3 . Successful 21 | . 2 1 5 3 7 1 2 . Failed 36 | . 6 . 10 5 13 1 1 . Catastrophic 8 | . 1 . 2 1 3 . 1 . Database Lockouts . | . . . . . . . . . Manual 24 | . 3 . 9 3 7 . 2 . Terminals 52 | . 6 . 13 8 20 2 3 . Fabricators . | . . . . . . . . . Repair Stations . | . . . . . . . . . Recycling Units 4 | . 2 . 2 . . . . . Scanalyzers . | . . . . . . . . . Garrison Access . | . . . . . . . . . Terminal Hacks 12 | . 2 1 2 1 4 1 1 . Record 1 | . 1 . . . . . . . Prototype ID Bank 1 | . . . . 1 . . . . Open Door 3 | . . 1 . . 2 . . . Emergency Access Points 1 | . . . 1 . . . . . Locate Traps 1 | . . . . . 1 . . . Hauler Manifests 1 | . . . . . 1 . . . Zone Layout 4 | . 1 . 1 . . 1 1 . Fabricator Hacks . | . . . . . . . . . Repair Station Hacks . | . . . . . . . . . Recycling Unit Hacks . | . . . . . . . . . Scanalyzer . | . . . . . . . . . Garrison Access Hacks . | . . . . . . . . . Unauthorized Hacks 9 | . . . 3 2 3 . 1 . Terminals 8 | . . . 2 2 3 . 1 . Track 5 | . . . 1 1 3 . . . Detonate 3 | . . . 1 1 . . 1 . Fabricators . | . . . . . . . . . Repair Stations . | . . . . . . . . . Recycling Units 1 | . . . 1 . . . . . Reject 1 | . . . 1 . . . . . Scanalyzers . | . . . . . . . . . Garrison Access . | . . . . . . . . . Data Cores Recovered . | . . . . . . . . . Used . | . . . . . . . . . Hacking Detections 19 | . 3 . 6 1 7 1 1 . Full Trace Events 8 | . 2 . 3 1 2 . . . Feedback Events . | . . . . . . . . . Feedback Blocked . | . . . . . . . . . Robot Schematics Acquired . | . . . . . . . . . Robots Built . | . . . . . . . . . Authchips . | . . . . . . . . . Time . | . . . . . . . . . Total Robot Build Rating . | . . . . . . . . . Part Schematics Acquired . | . . . . . . . . . Parts Built . | . . . . . . . . . Authchips . | . . . . . . . . . Time . | . . . . . . . . . Total Part Build Rating . | . . . . . . . . . Parts Repaired . | . . . . . . . . . Time . | . . . . . . . . . Parts Recycled . | . . . . . . . . . Recycled Matter . | . . . . . . . . . Retrieved Matter . | . . . . . . . . . Retrieved Components . | . . . . . . . . . Parts Scanalyzed . | . . . . . . . . . Part Schematics Acquired . | . . . . . . . . . Parts Damaged . | . . . . . . . . . Bothacking | -11 -10 -10 -9 -8 -8 -7 -6 -6 ------------ Run | Jun Mat Min Mat Mat Sto Fac Fac Ext Used RIF Installer . | . . . . . . . . . Robots Hacked . | . . . . . . . . . Non-combat . | . . . . . . . . . Combat . | . . . . . . . . . Robot Hacks Applied . | . . . . . . . . . Relay Couplers Released . | . . . . . . . . . Fabnet Peak Effective % . | . . . . . . . . . Robots Rewired . | . . . . . . . . . Allies Hacked . | . . . . . . . . . Hacks Repelled . | . . . . . . . . . Allies | -11 -10 -10 -9 -8 -8 -7 -6 -6 -------- Run | Jun Mat Min Mat Mat Sto Fac Fac Ext Total Allies . | . . . . . . . . . Largest Group . | . . . . . . . . . Highest-Rated Group . | . . . . . . . . . Highest-Rated Ally . | . . . . . . . . . Total Orders . | . . . . . . . . . Ally Attacks . | . . . . . . . . . Total Damage . | . . . . . . . . . Kills . | . . . . . . . . . Allies Corrupted . | . . . . . . . . . Allies Melted . | . . . . . . . . . Intel | -11 -10 -10 -9 -8 -8 -7 -6 -6 ------- Run | Jun Mat Min Mat Mat Sto Fac Fac Ext Robot Analysis Total . | . . . . . . . . . Derelict Logs Recovered . | . . . . . . . . . Drone Launches . | . . . . . . . . . Drone Recoveries . | . . . . . . . . . Exploration | -11 -10 -10 -9 -8 -8 -7 -6 -6 ------------- Run | Jun Mat Min Mat Mat Sto Fac Fac Ext Turns Passed 4832 | 324 437 182 637 856 788 413 313 882 Spaces Moved 2684 | 212 257 212 440 431 416 262 199 255 Core 4 | 4 . . . . . . . . Treads . | . . . . . . . . . Legs 1276 | . . . . 300 416 262 199 99 Wheels 1404 | 208 257 212 440 131 . . . 156 Hover . | . . . . . . . . . Flight . | . . . . . . . . . Fastest Speed 50 | 50 80 80 80 101 120 120 122 95 Average Speed 106 | 99 92 80 91 116 120 121 122 108 Slowest Speed 195 | 100 100 80 110 190 190 122 123 195 Overloaded Moves . | . . . . . . . . . Propulsion Burnouts . | . . . . . . . . . Robots Hopped . | . . . . . . . . . Cave-ins Triggered . | . . . . . . . . . Exploration Rate (%) 22 | 10 26 29 39 29 46 5 3 19 Regions Visited 8 Branch Regions 3 Pre-discovered Areas . | . . . . . . . . . Known Exits Taken . | . . . . . . . . . Unknown Exits Taken 8 | 1 1 1 1 1 1 1 1 . Scrap Searched . | . . . . . . . . . Spaces Dug 6 | . . . 2 2 . 1 1 . Terrain Destroyed 223 | . 46 . 38 65 . 73 1 . Melee 4 | . . . . 2 . 1 1 . Projectile 3 | . . . 2 . . 1 . . AOE 216 | . 46 . 36 63 . 71 . . Terrain Rammed . | . . . . . . . . . Walls Destroyed . | . . . . . . . . . Machines Disabled . | . . . . . . . . . Actions | -11 -10 -10 -9 -8 -8 -7 -6 -6 --------- Run | Jun Mat Min Mat Mat Sto Fac Fac Ext Total 4102 | 266 358 217 599 657 625 320 252 808 Wait 828 | 1 . . 79 71 145 7 25 500 Move 2676 | 211 256 211 439 430 415 261 198 255 Hop . | . . . . . . . . . Pick Up 60 | 10 8 1 8 20 . 7 4 2 Fast Attach 48 | 7 6 . 5 15 4 3 1 7 Attach 24 | . 2 . 4 4 3 3 3 5 Detach 2 | . . . . . 1 1 . . Swap 34 | 1 9 . 5 14 1 1 1 2 Drop 63 | 2 11 . 9 20 7 5 4 5 Fire 187 | 34 66 4 50 13 . 20 . . Melee 172 | . . . . 70 49 12 9 32 Ram 1 | . . 1 . . . . . . Kick 7 | . . . . . . . 7 . Crush . | . . . . . . . . . Escape Stasis . | . . . . . . . . . Rewire . | . . . . . . . . . Trap . | . . . . . . . . . Miscellaneous . | . . . . . . . . . Route ------- -11/Junkyard -10/Materials -10/Mines -9/Materials -8/Materials -8/Storage -7/Factory -6/Factory (discovered 2 exits: [*Low] / [*Ext]) -6/Extension History --------- Turn | Location | Event 18 | -11/Junkyard | Discovered new exit (range 15) 325 | -11/Junkyard | Entered Materials 343 | -10/Materials | Build established: Mutant 427 | -10/Materials | Discovered new exit (range 5) 762 | -10/Materials | Entered Mines 767 | -10/Mines | Met a Derelict shopkeep closing up shop 933 | -10/Mines | Discovered new exit (range 6) 944 | -10/Mines | Entered Materials 944 | -9/Materials | Evolved 2 slots: Utility x2 1022 | -9/Materials | Build established: Scavenger-Mutant 1467 | -9/Materials | Discovered new exit (range 3) 1581 | -9/Materials | Entered another Materials area 1581 | -8/Materials | Evolved 2 slots: Propulsion x2 1840 | -8/Materials | Lost 4 parts (2n1u1w) 2227 | -8/Materials | Discovered new exit (range 14) 2282 | -8/Materials | Core integrity fell below 50% 2328 | -8/Materials | Lost 8 parts (5n2u1w) 2437 | -8/Materials | Entered Storage 2670 | -8/Storage | Build established: Mutant 3215 | -8/Storage | Discovered new exit (range 9) 3225 | -8/Storage | Entered Factory 3225 | -7/Factory | Evolved 2 slots: Power x1, Utility x1 3340 | -7/Factory | Discovered new exit (range 15) 3638 | -7/Factory | Entered another Factory area 3638 | -6/Factory | Evolved 2 slots: Propulsion x1, Weapon x1 3825 | -6/Factory | Discovered new exit (range 9) 3930 | -6/Factory | Discovered new exit (range 11) 3951 | -6/Factory | Entered Extension 4626 | -6/Extension | Disrupted transfer network 4759 | -6/Extension | Spotted B-75 Beast 4783 | -6/Extension | Spotted B-75 Beast 4812 | -6/Extension | Destroyed B-75 Beast 4818 | -6/Extension | Core integrity fell below 50% 4827 | -6/Extension | Core integrity fell below 20% 4833 | -6/Extension | Destroyed by B-75 Beast with Magnetic Acceleration Cannon Last Messages --------------- 04811_ Great Maul follow-up attack on B-75 Beast. 04811_ B-75 Beast suffers critical hit (Smash). 04811_ Destroyed Imp. Medium Treads. 04811_ B-75 Beast system corrupted by crushing effect. 04812_ B-75 Beast system terminally corrupted. 04812_ Imp. Cooling System fried. 04814_ Lgt. Fission Core destroyed. 04817_ B-75 Beast suffers critical hit (Smash). 04817_ Destroyed Imp. Medium Treads. 04817_ B-75 Beast system corrupted by crushing effect. 04817_ Hvy. Flail follow-up attack on B-75 Beast. 04817_ Wheel destroyed. 04820_ Hvy. Flail destroyed. 04820_ U-05 Engineer builds a Wall. 04820_ Great Maul destroyed. 04820_ Transmission Jammer destroyed. 04827_ B-75 Beast misfires. 04829_ U-05 Engineer builds a Wall. 04830_ Hvy. Flail destroyed. 04830_ K-01 Serf destroyed. Map ----- +----------------------------------------------------+ | ?????????????????????????????????????????????????? | | ?????????????????????????????????????????????????? | | ?????????????????????????????????????????????????? | | ?????????????????????????????????????????????????? | | ?????????????????????????????????????????????????? | | ?????????????????????????????????????????????????? | | ?????????????????????????????????????????????????? | | ?????????????????????????????????????????????????? | | ?????????????????????????????????????????????????? | | ?????????????????????????????????????????????????? | | ?????????????????????????????????????????????????? | | ?????????????????????????????????????????????????? | | ?????????????????????????????????????????????????? | | ?????????????????????????????????????????????????? | | ???????????????????????????????#??##?????????????? | | ?????????????????????????????? ### ##????????????? | | ?????????????????????????????? "" ???????????? | | ?????????????????????????????" " ???????????? | | ??????????????????????????##? ??????????? | | ????????????????#????????? # ??????????? | | ############################ ??????????? | | * u u ?????????? | | R% k !%|=*u ?????????? | | % %k!%*R%Y k ????????? | | BBY==% ????????? | | R BB@%*% tk ????????? | | #########################;##= ????????? | | ????????????????????##?? #%??? ????????? | | ????????????????????????#?#?????? ?????????? | | ???????????????????????????????????? ????????????? | | ?????????????????????????????????????????????????? | | ?????????????????????????????????????????????????? | | ?????????????????????????????????????????????????? | | ?????????????????????????????????????????????????? | | | | | | | | | | | | | | | | | | | | | | | | | | | | | | | | | +----------------------------------------------------+ Best States ------------- Heat Dissipation 37 Energy Generation 25 Energy Capacity 325 Matter Stores 300 Matter Capacity 300 Sight Range 16 Terrain Scan Range 16 Terrain Scan Density 85 ECM Strength 2 Jamming Range 12 Armor Coverage 225 Evasion (%) 55 Melee Accuracy 14 Offensive Hacking 10 Item Schematics ----------------- None Robot Schematics ------------------ None Fabricated ------------ Nothing Alien Tech Used ----------------- None Achievements -------------- None Challenges ------------ None Game ------ Seed AerolevHoverNanoactuators Manual? 0 Play Time 01:37:33 Cumulative 196.7 hours Start 2024.02.04 @ 17:33:20 End 2024.02.13 @ 16:28:49 Sessions 5 Manual Loads 0 Difficulty Rogue Special Mode None Game No. 146 Rogue 146 Adventurer 0 Explorer 0 Win Type - Total 0 Types 0/0/0/0/0/0/0/0/0 Lore% 44 Gallery% 58 Achievement% 44 Wizard Run 0 Options --------- ASCII 0 Keyboard 0 Movement Numpad Keybinds 0 Fullscreen 1 Font 16/Smallcaps Map View 112x50 Tactical HUD 1 Map Filters NONE Filters NONE Steam 1 RUN: a1735306-39c5-4730-b61b-1a3d1980ea9f